fUST/lending_fUST_20250204
["ID","MTS","AMOUNT","RATE_DAILY","PERIOD"]
[351610654,1738661441442,-2095.07,0.00016849,2]
[351610655,1738661441453,-943.33,0.00016849,2]
[351610656,1738661441463,-500.0,0.00016849,2]
[351610657,1738661441472,-500.0,0.00016849,2]
[351610658,1738661441481,-754.71,0.00016849,2]
[351610659,1738661441490,-500.0,0.00016849,2]
[351610660,1738661441501,-695.65,0.00016849,2]
[351610661,1738661441511,-885.43,0.00016849,2]
[351610662,1738661441520,-500.0,0.00016849,2]
[351610663,1738661441531,-1371.7,0.00016849,2]
[351610664,1738661441541,-500.0,0.00016849,2]
[351610665,1738661441551,-870.0,0.00016849,2]
[351610666,1738661441559,-4094.39,0.00016849,2]
[351610667,1738661441569,-500.0,0.00016849,2]
[351610668,1738661441579,-664.66,0.00016849,2]
[351610669,1738661441589,-1762.56,0.00016849,2]
[351610670,1738661441600,-603.09,0.00016849,2]
[351610671,1738661441609,-6416.6,0.00016849,2]
[351610672,1738661441620,-500.0,0.00016849,2]
[351610673,1738661441629,-500.0,0.00016849,2]
[351610674,1738661441643,-1741.97,0.00016849,2]
[351610675,1738661441653,-500.0,0.00016849,2]
[351610676,1738661441662,-737.32,0.00016849,2]
[351610677,1738661441671,-500.0,0.00016849,2]
[351610678,1738661441680,-1532.41,0.00016849,2]
[351610679,1738661441689,-725.4,0.00016849,2]
[351610680,1738661441699,-1668.05,0.00016849,2]
[351610681,1738661441708,-3116.47,0.00016849,2]
[351610682,1738661441718,-3852.12,0.00016849,2]
[351610683,1738661441727,-500.0,0.00016849,2]
[351610684,1738661441736,-631.25,0.00016849,2]
[351610685,1738661441745,-1013.19,0.00016849,2]
[351610686,1738661441754,-9815.74,0.00016849,2]
[351610687,1738661441763,-29721.03272111,0.00016886,2]
[351610688,1738661441773,-151.0,0.00016985,2]
[351610689,1738661441783,-167.416422,0.00016986,2]
[351610690,1738661441793,-181.049827,0.00016986,2]
[351610691,1738661441802,-181.049827,0.00016986,2]
[351610692,1738661441811,-744.21,0.00016986,2]
[351610693,1738661441820,-720.94,0.00016986,2]
[351610694,1738661441829,-500.0,0.00016986,2]
[351610695,1738661441839,-500.0,0.00016986,2]
[351610696,1738661441848,-500.0,0.00016986,2]
[351610697,1738661441857,-655.81,0.00016986,2]
[351610698,1738661441867,-500.0,0.00016986,2]
[351610699,1738661441877,-500.0,0.00016986,2]
[351610700,1738661441886,-1034.9,0.00016986,2]
[351610701,1738661441896,-2801.33,0.00016986,2]
[351610702,1738661441905,-611.24,0.00016986,2]
[351610703,1738661441916,-500.0,0.00016986,2]
[351610704,1738661441925,-500.0,0.00016986,2]
[351610705,1738661441935,-500.0,0.00016986,2]
[351610706,1738661441944,-528.86,0.00016986,2]
[351610707,1738661441954,-500.0,0.00016986,2]
[351610708,1738661441963,-500.0,0.00016986,2]
[351610709,1738661441973,-544.93,0.00016986,2]
[351610710,1738661441982,-2839.27429365,0.00016986,2]
[351610711,1738661441997,-13612.95570635,0.00016986,2]
[351610712,1738661442007,-500.0,0.00016986,2]
[351610713,1738661442016,-701.27,0.00016986,2]
[351610714,1738661442025,-895.53,0.00016986,2]
[351610715,1738661442036,-2047.46,0.00016986,2]
[351610716,1738661442045,-500.0,0.00016986,2]
[351610717,1738661442055,-512.75,0.00016986,2]
[351610718,1738661442065,-2649.63,0.00016986,2]
[351610719,1738661442074,-1005.89,0.00016986,2]
[351610720,1738661442083,-500.0,0.00016986,2]
[351610721,1738661442094,-2095.07,0.00016986,2]
[351610722,1738661442104,-943.33,0.00016986,2]
[351610723,1738661442113,-500.0,0.00016986,2]
[351610724,1738661442123,-500.0,0.00016986,2]
[351610725,1738661442133,-754.71,0.00016986,2]
[351610726,1738661442142,-288.53370398,0.00016986,2]
[351610727,1738661442152,-695.65,0.00016986,2]
[351610728,1738661442162,-885.43,0.00016986,2]
[351610729,1738661442172,-500.0,0.00016986,2]
[351610730,1738661442182,-1371.7,0.00016986,2]
[351610731,1738661442192,-500.0,0.00016986,2]
[351610732,1738661442201,-870.0,0.00016986,2]
[351610733,1738661442210,-4094.39,0.00016986,2]
[351610734,1738661442219,-500.0,0.00016986,2]
[351610735,1738661442228,-664.66,0.00016986,2]
[351610736,1738661442238,-1762.56,0.00016986,2]
[351610737,1738661442247,-603.09,0.00016986,2]
[351610738,1738661442256,-6416.6,0.00016986,2]
[351610739,1738661442265,-500.0,0.00016986,2]
[351610740,1738661442275,-500.0,0.00016986,2]
[351610741,1738661442285,-1741.97,0.00016986,2]
[351610742,1738661442295,-500.0,0.00016986,2]
[351610743,1738661442305,-737.32,0.00016986,2]
[351610744,1738661442315,-500.0,0.00016986,2]
[351610745,1738661442324,-1532.41,0.00016986,2]
[351610746,1738661442334,-725.4,0.00016986,2]
[351610747,1738661442344,-1668.05,0.00016986,2]
[351610748,1738661442353,-3116.47,0.00016986,2]
[351610749,1738661442363,-3504.1870768,0.00016986,2]
[351610750,1738661442465,-347.9329232,0.00016986,2]
[351610752,1738661442474,-500.0,0.00016986,2]
[351610753,1738661442483,-631.25,0.00016986,2]
[351610754,1738661442494,-343.92726328,0.00016986,2]
[351610798,1738661443197,-500.0,0.00016438,2]
[351610800,1738661443206,-395.76462588,0.00016438,2]
[351610876,1738661446237,-104.23537412,0.00016438,2]
[351610878,1738661446247,-266.36462588,0.00016438,2]
[351610880,1738661446259,-233.63537412,0.00016438,2]
[351610882,1738661446268,-194.10733049,0.00016575,2]
[351611100,1738661912066,185.541732,0.00013973,2]
[351611714,1738662638490,-250.0,0.00015089,2]
[351611716,1738662638505,-500.0,0.00015342,2]
[351611719,1738662638526,-1129.0,0.00015342,2]
[351611721,1738662638541,-300.0,0.00015343,2]
[351611723,1738662638555,-24900.0,0.00015344,2]
[351611726,1738662638568,-1000.0,0.00016,4]
[351611728,1738662638581,-162.34055892,0.00016338,2]
[351611730,1738662638593,-499.0,0.00016437,2]
[351611732,1738662638606,-414.34723486,0.00016438,2]
[351611735,1738662638618,-229.7479453,0.00016438,2]
[351611737,1738662638630,-495.63186622,0.00016438,2]
[351611739,1738662638641,-553.45754452,0.00016438,2]
[351611741,1738662638654,-500.0,0.00016438,2]
[351611743,1738662638666,-500.0,0.00016438,2]
[351611746,1738662638677,-500.0,0.00016438,2]
[351611748,1738662638689,-484.28451177,0.00016438,2]
[351611750,1738662638700,-500.0,0.00016438,2]
[351611752,1738662638712,-500.0,0.00016438,2]
[351611755,1738662638723,-2801.33,0.00016438,2]
[351611757,1738662638736,-609.26487491,0.00016438,2]
[351611759,1738662638748,-500.0,0.00016438,2]
[351611761,1738662638761,-390.85512548,0.00016438,2]
[351611763,1738662638774,-500.0,0.00016438,2]
[351611766,1738662638785,-500.0,0.00016438,2]
[351611768,1738662638797,-500.0,0.00016438,2]
[351611770,1738662638808,-500.0,0.00016438,2]
[351611772,1738662638818,-500.0,0.00016438,2]
[351611774,1738662638829,-500.0,0.00016438,2]
[351611776,1738662638841,-500.0,0.00016438,2]
[351611778,1738662638853,-278.81266951,0.00016438,2]
[351611780,1738662638864,-500.0,0.00016438,2]
[351611782,1738662638875,-500.0,0.00016438,2]
[351611785,1738662638888,-500.0,0.00016438,2]
[351611787,1738662638899,-500.0,0.00016438,2]
[351611789,1738662638911,-500.0,0.00016438,2]
[351611791,1738662638923,-500.0,0.00016438,2]
[351611794,1738662638935,-500.0,0.00016438,2]
[351611796,1738662638946,-778.83,0.00016438,2]
[351611798,1738662638956,-500.0,0.00016438,2]
[351611800,1738662638967,-500.0,0.00016438,2]
[351611802,1738662638981,-612.57339544,0.00016438,2]
[351611805,1738662638993,-500.0,0.00016438,2]
[351611807,1738662639010,-756.48,0.00016438,2]
[351611809,1738662639022,-500.0,0.00016438,2]
[351611811,1738662639033,-500.0,0.00016438,2]
[351611813,1738662639045,-500.0,0.00016438,2]
[351611815,1738662639057,-500.0,0.00016438,2]
[351611817,1738662639068,-500.0,0.00016438,2]
[351611819,1738662639079,-500.0,0.00016438,2]
[351611821,1738662639091,-500.0,0.00016438,2]
[351611824,1738662639102,-1063.82659665,0.00016438,2]
[351611826,1738662639113,-501.51961899,0.00016438,2]
[351611828,1738662639123,-500.0,0.00016438,2]
[351611830,1738662639134,-500.0,0.00016438,2]
[351611832,1738662639145,-500.0,0.00016438,2]
[351611834,1738662639155,-500.0,0.00016438,2]
[351611836,1738662639166,-500.0,0.00016438,2]
[351611838,1738662639177,-500.0,0.00016438,2]
[351611840,1738662639189,-500.0,0.00016438,2]
[351611843,1738662639200,-500.0,0.00016438,2]
[351611845,1738662639211,-500.0,0.00016438,2]
[351611847,1738662639223,-500.0,0.00016438,2]
[351611849,1738662639234,-647.49731656,0.00016438,2]
[351611851,1738662639244,-500.0,0.00016438,2]
[351611853,1738662639253,-500.0,0.00016438,2]
[351611855,1738662639265,-500.0,0.00016438,2]
[351611857,1738662639275,-676.64,0.00016438,2]
[351611859,1738662639284,-500.0,0.00016438,2]
[351611861,1738662639294,-500.0,0.00016438,2]
[351611882,1738662639490,-500.0,0.00016438,2]
[351611884,1738662639502,-500.0,0.00016438,2]
[351611886,1738662639515,-500.0,0.00016438,2]
[351611888,1738662639526,-500.0,0.00016438,2]
[351611890,1738662639536,-226.57920029,0.00016438,2]
[351611892,1738662639546,-500.0,0.00016438,2]
[351611894,1738662639555,-500.0,0.00016438,2]
[351611896,1738662639564,-500.0,0.00016438,2]
[351611898,1738662639574,-500.0,0.00016438,2]
[351611899,1738662639583,-500.0,0.00016438,2]
[351611900,1738662639592,-500.0,0.00016438,2]
[351611901,1738662639602,-577.62831255,0.00016438,2]
[351611902,1738662639613,-500.0,0.00016438,2]
[351611903,1738662639622,-500.0,0.00016438,2]
[351611904,1738662639632,-500.0,0.00016438,2]
[351611905,1738662639641,-500.0,0.00016438,2]
[351611906,1738662639651,-1034.9,0.00016438,2]
[351611908,1738662639660,-500.0,0.00016438,2]
[351611910,1738662639670,-500.0,0.00016438,2]
[351611912,1738662639680,-500.0,0.00016438,2]
[351611914,1738662639690,-500.0,0.00016438,2]
[351611917,1738662639700,-500.0,0.00016438,2]
[351611919,1738662639709,-500.0,0.00016438,2]
[351611921,1738662639719,-632.07,0.00016438,2]
[351611923,1738662639728,-500.0,0.00016438,2]
[351611925,1738662639738,-500.0,0.00016438,2]
[351611927,1738662639747,-500.0,0.00016438,2]
[351611928,1738662639758,-500.0,0.00016438,2]
[351611931,1738662639767,-500.0,0.00016438,2]
[351611932,1738662639777,-500.0,0.00016438,2]
[351611934,1738662639786,-500.0,0.00016438,2]
[351611937,1738662639795,-500.0,0.00016438,2]
[351611938,1738662639805,-500.0,0.00016438,2]
[351611941,1738662639814,-506.2594217,0.00016438,2]
[351611942,1738662639823,-516.70884273,0.00016438,2]
[351611944,1738662639836,-500.0,0.00016438,2]
[351611946,1738662639845,-500.0,0.00016438,2]
[351611949,1738662639854,-500.0,0.00016438,2]
[351611951,1738662639864,-541.0886545,0.00016438,2]
[351611953,1738662639874,-534.68559103,0.00016438,2]
[351611955,1738662639883,-566.35461217,0.00016438,2]
[351611957,1738662639892,-500.0,0.00016438,2]
[351611959,1738662639901,-500.0,0.00016438,2]
[351611961,1738662639912,-500.0,0.00016438,2]
[351611963,1738662639921,-500.0,0.00016438,2]
[351611965,1738662639930,-500.0,0.00016438,2]
[351611967,1738662639940,-500.0,0.00016438,2]
[351611969,1738662639949,-500.0,0.00016438,2]
[351611971,1738662639958,-274.40048507,0.00016438,2]
[351611973,1738662639967,-500.0,0.00016438,2]
[351611975,1738662639977,-9815.74,0.00016438,2]
[351611977,1738662639986,-500.0,0.00016438,2]
[351611979,1738662639996,-505.06596654,0.00016438,2]
[351611981,1738662640005,-500.0,0.00016438,2]
[351611983,1738662640015,-556.94651755,0.00016438,2]
[351611984,1738662640023,-500.0,0.00016438,2]
[351611986,1738662640032,-500.0,0.00016438,2]
[351611988,1738662640042,-616.71,0.00016438,2]
[351611990,1738662640052,-500.0,0.00016438,2]
[351611991,1738662640061,-500.0,0.00016438,2]
[351611992,1738662640070,-500.0,0.00016438,2]
[351611993,1738662640079,-500.0,0.00016438,2]
[351611994,1738662640088,-500.0,0.00016438,2]
[351611995,1738662640097,-2643.92,0.00016438,2]
[351611996,1738662640107,-963.98,0.00016438,2]
[351611997,1738662640116,-500.0,0.00016438,2]
[351611998,1738662640126,-500.0,0.00016438,2]
[351611999,1738662640135,-500.0,0.00016438,2]
[351612000,1738662640145,-500.0,0.00016438,2]
[351612001,1738662640154,-904.02,0.00016438,2]
[351612002,1738662640163,-858.21,0.00016438,2]
[351612003,1738662640173,-500.0,0.00016438,2]
[351612004,1738662640182,-500.0,0.00016438,2]
[351612005,1738662640193,-500.0,0.00016438,2]
[351612006,1738662640202,-500.0,0.00016438,2]
[351612007,1738662640212,-500.0,0.00016438,2]
[351612008,1738662640222,-500.0,0.00016438,2]
[351612009,1738662640231,-500.0,0.00016438,2]
[351612010,1738662640241,-500.0,0.00016438,2]
[351612011,1738662640251,-500.0,0.00016438,2]
[351612012,1738662640272,-2007.78,0.00016438,2]
[351612013,1738662640284,-500.0,0.00016438,2]
[351612014,1738662640294,-500.0,0.00016438,2]
[351612015,1738662640305,-666.66,0.00016438,2]
[351612016,1738662640315,-500.0,0.00016438,2]
[351612017,1738662640325,-894.41,0.00016438,2]
[351612018,1738662640335,-500.0,0.00016438,2]
[351612019,1738662640345,-500.0,0.00016438,2]
[351612020,1738662640355,-500.0,0.00016438,2]
[351612021,1738662640366,-163.52733173,0.00016438,2]
[351612022,1738662640376,-500.0,0.00016438,2]
[351612023,1738662640386,-500.0,0.00016438,2]
[351612024,1738662640396,-507.25544204,0.00016438,2]
[351612025,1738662640407,-500.0,0.00016438,2]
[351612026,1738662640417,-1389.12,0.00016438,2]
[351612027,1738662640427,-500.0,0.00016438,2]
[351612028,1738662640437,-723.27,0.00016438,2]
[351612029,1738662640447,-754.54,0.00016438,2]
[351612030,1738662640458,-876.0,0.00016438,2]
[351612032,1738662640468,-500.0,0.00016438,2]
[351612034,1738662640478,-500.0,0.00016438,2]
[351612035,1738662640488,-684.07,0.00016438,2]
[351612036,1738662640498,-6486.2,0.00016438,2]
[351612037,1738662640509,-600.65,0.00016438,2]
[351612038,1738662640518,-500.0,0.00016438,2]
[351612039,1738662640529,-4174.75,0.00016438,2]
[351612040,1738662640539,-500.0,0.00016438,2]
[351612041,1738662640550,-500.0,0.00016438,2]
[351612042,1738662640560,-500.0,0.00016438,2]
[351612043,1738662640570,-500.0,0.00016438,2]
[351612044,1738662640580,-500.0,0.00016438,2]
[351612045,1738662640591,-1468.56,0.00016438,2]
[351612046,1738662640601,-500.0,0.00016438,2]
[351612047,1738662640611,-695.18,0.00016438,2]
[351612048,1738662640621,-500.0,0.00016438,2]
[351612049,1738662640633,-500.0,0.00016438,2]
[351612050,1738662640642,-500.0,0.00016438,2]
[351612051,1738662640651,-1762.43,0.00016438,2]
[351612052,1738662640662,-1598.55,0.00016438,2]
[351612053,1738662640672,-1689.12,0.00016438,2]
[351612054,1738662640681,-2986.62,0.00016438,2]
[351612055,1738662640691,-3691.62,0.00016438,2]
[351612056,1738662640701,-500.0,0.00016438,2]
[351612057,1738662640711,-500.0,0.00016438,2]
[351612058,1738662640722,-712.95,0.00016438,2]
[351612059,1738662640732,-526.82,0.00016438,2]
[351612060,1738662640742,-500.0,0.00016438,2]
[351612061,1738662640752,-500.0,0.00016438,2]
[351612062,1738662640762,-500.0,0.00016438,2]
[351612063,1738662640773,-528.86,0.00016438,2]
[351612064,1738662640783,-672.05,0.00016438,2]
[351612065,1738662640792,-998.86,0.00016438,2]
[351612066,1738662640801,-604.95,0.00016438,2]
[351612067,1738662640811,-500.0,0.00016438,2]
[351612068,1738662640821,-1962.15,0.00016438,2]
[351612069,1738662640831,-646.93084868,0.00016438,2]
[351612070,1738662640843,-7438.69753278,0.000165,2]
[351612071,1738662640853,-500.0,0.00016575,2]
[351612072,1738662640863,-378.27194955,0.00016575,2]
[351612073,1738662640873,-312.50620919,0.00016575,2]
[351612074,1738662640883,-500.0,0.00016575,2]
[351612075,1738662640892,-2801.33,0.00016575,2]
[351612076,1738662640902,-500.0,0.00016575,2]
[351612077,1738662640911,-500.0,0.00016575,2]
[351612078,1738662640923,-500.0,0.00016575,2]
[351612079,1738662640933,-500.0,0.00016575,2]
[351612080,1738662640943,-778.83,0.00016575,2]
[351612081,1738662640952,-756.48,0.00016575,2]
[351612082,1738662640962,-500.0,0.00016575,2]
[351612083,1738662640971,-500.0,0.00016575,2]
[351612084,1738662640981,-500.0,0.00016575,2]
[351612085,1738662640991,-500.0,0.00016575,2]
[351612086,1738662641000,-500.0,0.00016575,2]
[351612087,1738662641011,-500.0,0.00016575,2]
[351612088,1738662641020,-500.0,0.00016575,2]
[351612089,1738662641030,-500.0,0.00016575,2]
[351612090,1738662641039,-676.64,0.00016575,2]
[351612091,1738662641049,-500.0,0.00016575,2]
[351612092,1738662641059,-1034.9,0.00016575,2]
[351612093,1738662641069,-500.0,0.00016575,2]
[351612094,1738662641079,-500.0,0.00016575,2]
[351612095,1738662641089,-632.07,0.00016575,2]
[351612096,1738662641099,-154.51148606,0.00016575,2]
[351612097,1738662641109,-500.0,0.00016575,2]
[351612098,1738662641119,-299.35692336,0.00016575,2]
[351612099,1738662641129,-500.0,0.00016575,2]
[351612100,1738662641139,-500.0,0.00016575,2]
[351612101,1738662641148,-500.0,0.00016575,2]
[351612102,1738662641158,-9815.74,0.00016575,2]
[351612103,1738662641167,-500.0,0.00016575,2]
[351612104,1738662641177,-616.71,0.00016575,2]
[351612105,1738662641187,-500.0,0.00016575,2]
[351612106,1738662641196,-2643.92,0.00016575,2]
[351612107,1738662641205,-963.98,0.00016575,2]
[351612108,1738662641215,-500.0,0.00016575,2]
[351612109,1738662641224,-904.02,0.00016575,2]
[351612110,1738662641233,-858.21,0.00016575,2]
[351612111,1738662641243,-500.0,0.00016575,2]
[351612112,1738662641253,-500.0,0.00016575,2]
[351612113,1738662641264,-500.0,0.00016575,2]
[351612114,1738662641274,-2007.78,0.00016575,2]
[351612115,1738662641284,-666.66,0.00016575,2]
[351612116,1738662641293,-894.41,0.00016575,2]
[351612117,1738662641303,-500.0,0.00016575,2]
[351612118,1738662641312,-500.0,0.00016575,2]
[351612119,1738662641322,-475.2486598,0.00016575,2]
[351612120,1738662641331,-500.0,0.00016575,2]
[351612121,1738662641341,-1389.12,0.00016575,2]
[351612122,1738662641350,-723.27,0.00016575,2]
[351612123,1738662641360,-754.54,0.00016575,2]
[351612124,1738662641370,-876.0,0.00016575,2]
[351612125,1738662641380,-500.0,0.00016575,2]
[351612126,1738662641389,-684.07,0.00016575,2]
[351612127,1738662641399,-6486.2,0.00016575,2]
[351612128,1738662641408,-600.65,0.00016575,2]
[351612129,1738662641418,-4174.75,0.00016575,2]
[351612130,1738662641427,-500.0,0.00016575,2]
[351612131,1738662641437,-500.0,0.00016575,2]
[351612132,1738662641447,-500.0,0.00016575,2]
[351612133,1738662641456,-1468.56,0.00016575,2]
[351612134,1738662641466,-695.18,0.00016575,2]
[351612135,1738662641476,-500.0,0.00016575,2]
[351612136,1738662641485,-500.0,0.00016575,2]
[351612137,1738662641501,-1762.43,0.00016575,2]
[351612138,1738662641511,-1598.55,0.00016575,2]
[351612139,1738662641521,-1689.12,0.00016575,2]
[351612140,1738662641530,-2986.62,0.00016575,2]
[351612141,1738662641540,-3691.62,0.00016575,2]
[351612142,1738662641550,-712.95,0.00016575,2]
[351612143,1738662641560,-446.29785688,0.00016575,2]
[351612144,1738662641569,-500.0,0.00016575,2]
[351612145,1738662641579,-528.86,0.00016575,2]
[351612146,1738662641588,-672.05,0.00016575,2]
[351612147,1738662641597,-998.86,0.00016575,2]
[351612148,1738662641606,-604.95,0.00016575,2]
[351612149,1738662641616,-500.0,0.00016575,2]
[351612150,1738662641625,-1962.15,0.00016575,2]
[351612151,1738662641634,-2293.16,0.000167,2]
[351612152,1738662641643,-500.0,0.00016712,2]
[351612153,1738662641652,-500.0,0.00016712,2]
[351612154,1738662641662,-2801.33,0.00016712,2]
[351612155,1738662641672,-500.0,0.00016712,2]
[351612156,1738662641681,-500.0,0.00016712,2]
[351612157,1738662641691,-778.83,0.00016712,2]
[351612158,1738662641699,-756.48,0.00016712,2]
[351612159,1738662641709,-500.0,0.00016712,2]
[351612160,1738662641718,-500.0,0.00016712,2]
[351612161,1738662641727,-500.0,0.00016712,2]
[351612162,1738662641737,-500.0,0.00016712,2]
[351612163,1738662641746,-500.0,0.00016712,2]
[351612164,1738662641756,-500.0,0.00016712,2]
[351612165,1738662641767,-500.0,0.00016712,2]
[351612166,1738662641776,-500.0,0.00016712,2]
[351612168,1738662641785,-676.64,0.00016712,2]
[351612170,1738662641795,-500.0,0.00016712,2]
[351612172,1738662641804,-1034.9,0.00016712,2]
[351612174,1738662641813,-500.0,0.00016712,2]
[351612175,1738662641822,-500.0,0.00016712,2]
[351612177,1738662641834,-632.07,0.00016712,2]
[351612178,1738662641845,-500.0,0.00016712,2]
[351612180,1738662641855,-500.0,0.00016712,2]
[351612181,1738662641865,-566.9,0.00016712,2]
[351612183,1738662641876,-308.40023249,0.00016712,2]
[351612184,1738662641885,-9815.74,0.00016712,2]
[351612185,1738662641894,-500.0,0.00016712,2]
[351612186,1738662641904,-616.71,0.00016712,2]
[351612187,1738662641915,-500.0,0.00016712,2]
[351612188,1738662641924,-2643.92,0.00016712,2]
[351612189,1738662641933,-963.98,0.00016712,2]
[351612190,1738662641943,-500.0,0.00016712,2]
[351612191,1738662641952,-904.02,0.00016712,2]
[351612192,1738662641962,-858.21,0.00016712,2]
[351612194,1738662641971,-500.0,0.00016712,2]
[351612195,1738662641980,-500.0,0.00016712,2]
[351612196,1738662641990,-2007.78,0.00016712,2]
[351612197,1738662641999,-666.66,0.00016712,2]
[351612199,1738662642011,-894.41,0.00016712,2]
[351612200,1738662642021,-500.0,0.00016712,2]
[351612201,1738662642031,-500.0,0.00016712,2]
[351612202,1738662642040,-500.0,0.00016712,2]
[351612203,1738662642049,-1389.12,0.00016712,2]
[351612204,1738662642059,-723.27,0.00016712,2]
[351612205,1738662642069,-754.54,0.00016712,2]
[351612206,1738662642079,-876.0,0.00016712,2]
[351612207,1738662642090,-500.0,0.00016712,2]
[351612208,1738662642099,-684.07,0.00016712,2]
[351612209,1738662642108,-6486.2,0.00016712,2]
[351612210,1738662642118,-600.65,0.00016712,2]
[351612211,1738662642127,-4174.75,0.00016712,2]
[351612212,1738662642136,-554.724698,0.00016712,2]
[351612213,1738662642146,-500.0,0.00016712,2]
[351612214,1738662642155,-500.0,0.00016712,2]
[351612215,1738662642165,-1468.56,0.00016712,2]
[351612216,1738662642175,-695.18,0.00016712,2]
[351612217,1738662642185,-500.0,0.00016712,2]
[351612218,1738662642195,-500.0,0.00016712,2]
[351612219,1738662642204,-1762.43,0.00016712,2]
[351612220,1738662642215,-1598.55,0.00016712,2]
[351612221,1738662642225,-1689.12,0.00016712,2]
[351612222,1738662642235,-2986.62,0.00016712,2]
[351612223,1738662642245,-3691.62,0.00016712,2]
[351612224,1738662642255,-712.95,0.00016712,2]
[351612225,1738662642267,-164.8,0.00016712,2]
[351612226,1738662642276,-528.86,0.00016712,2]
[351612227,1738662642286,-672.05,0.00016712,2]
[351612228,1738662642296,-998.86,0.00016712,2]
[351612229,1738662642305,-604.95,0.00016712,2]
[351612230,1738662642314,-500.0,0.00016712,2]
[351612231,1738662642324,-1962.15,0.00016712,2]
[351612232,1738662642334,-12967.98619452,0.00016739,2]
[351612233,1738662642343,-29721.03272111,0.00016749,2]
[351612234,1738662642353,-420.0,0.00016786,2]
[351612235,1738662642362,-500.0,0.00016843,2]
[351612236,1738662642372,-500.0,0.00016848,2]
[351612237,1738662642381,-500.0,0.00016848,2]
[351612238,1738662642391,-500.0,0.00016848,2]
[351612239,1738662642400,-296.67055866,0.00016848,2]
[351612240,1738662642409,-316.40134557,0.00016848,2]
[351612241,1738662642419,-500.0,0.00016848,2]
[351612242,1738662642428,-500.0,0.00016848,2]
[351612243,1738662642438,-500.0,0.00016848,2]
[351612244,1738662642447,-500.0,0.00016848,2]
[351612245,1738662642456,-500.0,0.00016848,2]
[351612246,1738662642466,-500.0,0.00016848,2]
[351612247,1738662642475,-500.0,0.00016848,2]
[351612248,1738662642485,-500.0,0.00016848,2]
[351612249,1738662642495,-500.0,0.00016848,2]
[351612250,1738662642504,-461.31650369,0.00016849,2]
[351612251,1738662642517,-2801.33,0.00016849,2]
[351612252,1738662642527,-500.0,0.00016849,2]
[351612253,1738662642536,-500.0,0.00016849,2]
[351612254,1738662642546,-778.83,0.00016849,2]
[351612255,1738662642555,-756.48,0.00016849,2]
[351612256,1738662642565,-500.0,0.00016849,2]
[351612257,1738662642574,-500.0,0.00016849,2]
[351612258,1738662642584,-500.0,0.00016849,2]
[351612259,1738662642593,-500.0,0.00016849,2]
[351612260,1738662642603,-500.0,0.00016849,2]
[351612261,1738662642613,-214.25,0.00016849,2]
[351612263,1738662642623,-500.0,0.00016849,2]
[351612265,1738662642632,-500.0,0.00016849,2]
[351612268,1738662642642,-676.64,0.00016849,2]
[351612270,1738662642651,-500.0,0.00016849,2]
[351612272,1738662642661,-1034.9,0.00016849,2]